[Event "Late-Titled-Tuesday-Blitz-October-17-2023"]
[Site "Chess.com"]
[Date "2023.10.17"]
[Round "2"]
[White "BogdanDeac"]
[Black "ellatambien"]
[Result "1-0"]
[WhiteElo "2990"]
[BlackElo "2620"]
[TimeControl "180+1"]
[EndTime "14:19:35 PDT"]
[Termination "BogdanDeac won by resignation"]

1. b3 {[%clk 0:03:00.9]} 1... e5 {[%clk 0:02:59.8]} 2. Bb2 {[%clk 0:02:59.9]}
2... d6 {[%clk 0:03:00.3]} 3. e3 {[%clk 0:02:59.8]} 3... Nf6 {[%clk 0:03:00.5]}
4. Ne2 {[%clk 0:03:00.1]} 4... g6 {[%clk 0:02:59.7]} 5. f4 {[%clk 0:02:59.8]}
5... Nc6 {[%clk 0:02:57.4]} 6. g3 {[%clk 0:02:59.1]} 6... Bg7 {[%clk 0:02:56.9]}
7. Bg2 {[%clk 0:02:59.4]} 7... O-O {[%clk 0:02:57.3]} 8. O-O {[%clk 0:02:59.9]}
8... a5 {[%clk 0:02:57.6]} 9. a4 {[%clk 0:02:58.1]} 9... Be6 {[%clk 0:02:55.5]}
10. Na3 {[%clk 0:02:50.9]} 10... Qd7 {[%clk 0:02:54.7]} 11. d3 {[%clk
0:02:35.8]} 11... Bh3 {[%clk 0:02:52.9]} 12. Qd2 {[%clk 0:02:20.3]} 12... Bxg2
{[%clk 0:02:51.8]} 13. Kxg2 {[%clk 0:02:20.1]} 13... Rfe8 {[%clk 0:02:52.1]} 14.
Rab1 {[%clk 0:02:15.3]} 14... Re7 {[%clk 0:02:50.4]} 15. Nc4 {[%clk 0:01:52.4]}
15... Rae8 {[%clk 0:02:49.7]} 16. fxe5 {[%clk 0:01:51.4]} 16... dxe5 {[%clk
0:02:42.4]} 17. e4 {[%clk 0:01:48.8]} 17... b6 {[%clk 0:02:37.8]} 18. h3 {[%clk
0:01:47.5]} 18... Rd8 {[%clk 0:02:33.6]} 19. Rbd1 {[%clk 0:01:45.3]} 19... Ne8
{[%clk 0:02:33.5]} 20. Nc3 {[%clk 0:01:41.5]} 20... Nd4 {[%clk 0:02:31.9]} 21.
Nd5 {[%clk 0:01:16.2]} 21... Re6 {[%clk 0:02:32]} 22. Bxd4 {[%clk 0:01:16]}
22... exd4 {[%clk 0:02:31.4]} 23. Kh2 {[%clk 0:00:49.3]} 23... Nd6 {[%clk
0:02:31.1]} 24. Nxd6 {[%clk 0:00:32.8]} 24... Qxd6 {[%clk 0:02:30.2]} 25. Nf4
{[%clk 0:00:33.1]} 25... Re7 {[%clk 0:02:28.6]} 26. Qg2 {[%clk 0:00:31.2]} 26...
c6 {[%clk 0:02:25.7]} 27. Qf3 {[%clk 0:00:28.8]} 27... b5 {[%clk 0:02:18.4]} 28.
Ra1 {[%clk 0:00:28.1]} 28... Qc5 {[%clk 0:02:09.9]} 29. Qg2 {[%clk 0:00:25.1]}
29... b4 {[%clk 0:02:04.2]} 30. h4 {[%clk 0:00:23.6]} 30... h5 {[%clk
0:02:03.1]} 31. Rf3 {[%clk 0:00:21.8]} 31... Re5 {[%clk 0:01:58.1]} 32. Raf1
{[%clk 0:00:19.7]} 32... Rf8 {[%clk 0:01:56.3]} 33. g4 {[%clk 0:00:17.3]} 33...
hxg4 {[%clk 0:01:55.5]} 34. Qxg4 {[%clk 0:00:18.2]} 34... Qe7 {[%clk 0:01:40.7]}
35. Qh3 {[%clk 0:00:06]} 35... Bh6 {[%clk 0:01:37.4]} 36. Qg3 {[%clk 0:00:03.5]}
36... Bxf4 {[%clk 0:01:34.2]} 37. Rxf4 {[%clk 0:00:03.3]} 37... Rh5 {[%clk
0:01:34.5]} 38. Kg2 {[%clk 0:00:02.7]} 38... Kg7 {[%clk 0:01:32.8]} 39. Rg4
{[%clk 0:00:02.3]} 39... Qc5 {[%clk 0:01:31.9]} 40. Rf2 {[%clk 0:00:01.8]} 40...
Qe7 {[%clk 0:01:27.3]} 41. Qf4 {[%clk 0:00:01.8]} 41... Rfh8 {[%clk 0:01:26.4]}
42. Kg3 {[%clk 0:00:01]} 42... c5 {[%clk 0:01:03.3]} 43. Rf1 {[%clk 0:00:01.1]}
43... Qe6 {[%clk 0:00:55.2]} 44. Rf2 {[%clk 0:00:01.2]} 44... Re8 {[%clk
0:00:50.7]} 45. Rf1 {[%clk 0:00:01.5]} 45... Re7 {[%clk 0:00:51.3]} 46. Rg5
{[%clk 0:00:01.4]} 46... Rxg5+ {[%clk 0:00:50.8]} 47. hxg5 {[%clk 0:00:01.8]}
47... Re8 {[%clk 0:00:50]} 48. Qf6+ {[%clk 0:00:02.2]} 48... Qxf6 {[%clk
0:00:49.7]} 49. Rxf6 {[%clk 0:00:03.1]} 49... Re6 {[%clk 0:00:47.9]} 50. Rf4
{[%clk 0:00:03]} 50... Re5 {[%clk 0:00:47.2]} 51. Kg4 {[%clk 0:00:03.4]} 51...
Re6 {[%clk 0:00:46.1]} 52. Rf3 {[%clk 0:00:03.4]} 52... Re8 {[%clk 0:00:43.4]}
53. Rh3 {[%clk 0:00:03.5]} 53... Re5 {[%clk 0:00:40.2]} 54. Kf4 {[%clk
0:00:03.9]} 54... Re6 {[%clk 0:00:39.8]} 55. e5 {[%clk 0:00:04.1]} 55... Re8
{[%clk 0:00:37.5]} 56. Ke4 {[%clk 0:00:04.3]} 56... Rd8 {[%clk 0:00:37.9]} 57.
Rh2 {[%clk 0:00:04.7]} 57... Rd7 {[%clk 0:00:38.1]} 58. Rf2 {[%clk 0:00:04.9]}
58... Rd8 {[%clk 0:00:36.8]} 59. Rf6 {[%clk 0:00:04.9]} 59... Rh8 {[%clk
0:00:37.3]} 60. Rc6 {[%clk 0:00:04.3]} 60... Rh5 {[%clk 0:00:36.7]} 61. Rxc5
{[%clk 0:00:04.3]} 61... Rxg5 {[%clk 0:00:37.6]} 62. Kxd4 {[%clk 0:00:04.6]}
62... Rg2 {[%clk 0:00:36.8]} 63. Ke3 {[%clk 0:00:04]} 63... g5 {[%clk
0:00:34.3]} 64. Kf3 {[%clk 0:00:04.2]} 64... Rg1 {[%clk 0:00:34.2]} 65. Rc6
{[%clk 0:00:03.2]} 65... Re1 {[%clk 0:00:32.8]} 66. d4 {[%clk 0:00:03.1]} 66...
Rf1+ {[%clk 0:00:31.1]} 67. Kg4 {[%clk 0:00:02.7]} 67... Rf4+ {[%clk 0:00:31.6]}
68. Kxg5 {[%clk 0:00:03]} 68... Rxd4 {[%clk 0:00:32.3]} 69. Rc5 {[%clk
0:00:03.4]} 69... Rd2 {[%clk 0:00:31.8]} 70. Kf5 {[%clk 0:00:03.4]} 70... Re2
{[%clk 0:00:31.7]} 71. Rxa5 {[%clk 0:00:02.8]} 71... Rxc2 {[%clk 0:00:31.6]} 72.
Rb5 {[%clk 0:00:03.1]} 72... Rf2+ {[%clk 0:00:31.8]} 73. Ke4 {[%clk 0:00:03.2]}
73... Rh2 {[%clk 0:00:31.1]} 74. Kd5 {[%clk 0:00:02.5]} 74... Rh4 {[%clk
0:00:30.4]} 75. Kc5 {[%clk 0:00:02.7]} 75... Re4 {[%clk 0:00:30.5]} 76. Rxb4
{[%clk 0:00:02.8]} 76... Rxe5+ {[%clk 0:00:31]} 77. Kb6 {[%clk 0:00:03.3]} 77...
f5 {[%clk 0:00:30.3]} 78. a5 {[%clk 0:00:03.4]} 78... Re4 {[%clk 0:00:30.8]} 79.
Rb5 {[%clk 0:00:02.9]} 79... f4 {[%clk 0:00:25.6]} 80. a6 {[%clk 0:00:02.7]}
80... Kg6 {[%clk 0:00:14.2]} 81. a7 {[%clk 0:00:02.5]} 81... Re8 {[%clk
0:00:14.7]} 82. Ra5 {[%clk 0:00:02.8]} 82... f3 {[%clk 0:00:10.3]} 83. a8=Q
{[%clk 0:00:02.9]} 83... Re6+ {[%clk 0:00:09.8]} 84. Qc6 {[%clk 0:00:02.4]}
84... Rxc6+ {[%clk 0:00:09.4]} 85. Kxc6 {[%clk 0:00:03.3]} 85... f2 {[%clk
0:00:09.5]} 86. Ra1 {[%clk 0:00:04]} 86... Kf5 {[%clk 0:00:10.4]} 87. Rf1 {[%clk
0:00:04.5]} 87... Ke4 {[%clk 0:00:11.3]} 88. b4 {[%clk 0:00:04.6]} 88... Kd3
{[%clk 0:00:12.2]} 89. Rxf2 {[%clk 0:00:05.2]} 1-0

[Event "Late-Titled-Tuesday-Blitz-October-17-2023"]
[Site "Chess.com"]
[Date "2023.10.17"]
[Round "2"]
[White "scandalgod"]
[Black "shanemelaughcm"]
[Result "0-1"]
[WhiteElo "2487"]
[BlackElo "2332"]
[TimeControl "180+1"]
[EndTime "14:19:36 PDT"]
[Termination "shanemelaughcm won by resignation"]

1. d4 {[%clk 0:03:00.9]} 1... e6 {[%clk 0:02:58]} 2. c4 {[%clk 0:03:00.7]} 2...
f5 {[%clk 0:02:57.7]} 3. g3 {[%clk 0:03:00.5]} 3... Nf6 {[%clk 0:02:58.4]} 4.
Bg2 {[%clk 0:03:01.4]} 4... Be7 {[%clk 0:02:59.1]} 5. Nf3 {[%clk 0:03:01.7]}
5... O-O {[%clk 0:03:00]} 6. O-O {[%clk 0:03:02.2]} 6... d6 {[%clk 0:03:00.9]}
7. Nc3 {[%clk 0:03:02.3]} 7... Ne4 {[%clk 0:03:01.5]} 8. Qc2 {[%clk 0:03:00.2]}
8... Nxc3 {[%clk 0:03:01.4]} 9. bxc3 {[%clk 0:02:59.6]} 9... Nc6 {[%clk
0:03:01.2]} 10. e4 {[%clk 0:02:59.8]} 10... e5 {[%clk 0:03:00.2]} 11. dxe5
{[%clk 0:02:56.6]} 11... dxe5 {[%clk 0:02:52.3]} 12. Rd1 {[%clk 0:02:55.9]}
12... Qe8 {[%clk 0:02:49.7]} 13. Bg5 {[%clk 0:02:32.8]} 13... Bxg5 {[%clk
0:02:28.1]} 14. Nxg5 {[%clk 0:02:32]} 14... h6 {[%clk 0:02:27.8]} 15. Nf3 {[%clk
0:02:29.7]} 15... f4 {[%clk 0:02:25.7]} 16. Rab1 {[%clk 0:02:27.5]} 16... Qh5
{[%clk 0:02:25.2]} 17. Nh4 {[%clk 0:02:22.1]} 17... f3 {[%clk 0:02:21.2]} 18.
Bf1 {[%clk 0:02:19.9]} 18... Ne7 {[%clk 0:02:09.7]} 19. Rd5 {[%clk 0:02:15.1]}
19... Nxd5 {[%clk 0:02:09.9]} 20. cxd5 {[%clk 0:02:16]} 20... g5 {[%clk
0:02:06.1]} 21. Nf5 {[%clk 0:02:14.8]} 21... Bxf5 {[%clk 0:02:03.6]} 22. exf5
{[%clk 0:02:15.7]} 22... b6 {[%clk 0:02:04.3]} 23. Qe4 {[%clk 0:02:12.1]} 23...
Rae8 {[%clk 0:02:04]} 24. Bd3 {[%clk 0:02:03.9]} 24... Rf6 {[%clk 0:01:56.3]}
25. c4 {[%clk 0:02:01.7]} 25... g4 {[%clk 0:01:56]} 26. Rc1 {[%clk 0:01:51.7]}
26... Qh3 {[%clk 0:01:54.3]} 27. Bf1 {[%clk 0:01:51.3]} 27... Qh5 {[%clk
0:01:55.2]} 28. c5 {[%clk 0:01:45.3]} 28... Qxf5 {[%clk 0:01:55]} 29. Qe3 {[%clk
0:01:39.4]} 29... Re7 {[%clk 0:01:50.8]} 30. Rd1 {[%clk 0:01:33.7]} 30... Kg7
{[%clk 0:01:38.9]} 31. h4 {[%clk 0:01:27.1]} 31... gxh3 {[%clk 0:01:32.2]} 32.
Kh2 {[%clk 0:01:26]} 32... h5 {[%clk 0:01:27.2]} 33. Bxh3 {[%clk 0:01:21.9]}
33... Qg6 {[%clk 0:01:25]} 34. Rg1 {[%clk 0:01:18.5]} 34... Qh6 {[%clk
0:01:02.4]} 35. Qe4 {[%clk 0:01:13.9]} 35... bxc5 {[%clk 0:01:00.3]} 36. Rb1
{[%clk 0:00:56.4]} 36... Qd2 {[%clk 0:00:43.6]} 37. Kg1 {[%clk 0:00:53]} 37...
Kh6 {[%clk 0:00:39.7]} 38. Bf1 {[%clk 0:00:50.8]} 38... Qg5 {[%clk 0:00:32.6]}
39. Rb8 {[%clk 0:00:41.6]} 39... Kg7 {[%clk 0:00:18.9]} 40. Bd3 {[%clk
0:00:41.4]} 40... Qc1+ {[%clk 0:00:13.5]} 41. Kh2 {[%clk 0:00:41]} 41... Qh6
{[%clk 0:00:14.4]} 42. Rc8 {[%clk 0:00:33]} 42... c4 {[%clk 0:00:14.5]} 43. Bc2
{[%clk 0:00:26.6]} 43... h4 {[%clk 0:00:15]} 44. Qxh4 {[%clk 0:00:15.5]} 44...
Qxh4+ {[%clk 0:00:15.4]} 45. gxh4 {[%clk 0:00:16.1]} 45... c3 {[%clk 0:00:16.3]}
46. Kg3 {[%clk 0:00:15.9]} 46... Rd7 {[%clk 0:00:15.3]} 47. Be4 {[%clk
0:00:14.6]} 47... c2 {[%clk 0:00:15.1]} 48. Bxc2 {[%clk 0:00:14.6]} 48... Rxd5
{[%clk 0:00:15.4]} 49. Rxc7+ {[%clk 0:00:14.4]} 49... Kf8 {[%clk 0:00:14.1]} 50.
Be4 {[%clk 0:00:13.5]} 50... Rd4 {[%clk 0:00:14.6]} 51. Bc6 {[%clk 0:00:08.2]}
51... Rc4 {[%clk 0:00:13.9]} 52. Rc8+ {[%clk 0:00:08.1]} 52... Ke7 {[%clk
0:00:14.6]} 53. Rc7+ {[%clk 0:00:07.7]} 53... Kd6 {[%clk 0:00:14]} 54. Rxa7
{[%clk 0:00:02.9]} 54... Rxc6 {[%clk 0:00:14.7]} 55. Kg4 {[%clk 0:00:01.7]}
55... Rc4+ {[%clk 0:00:14.3]} 56. Kg5 {[%clk 0:00:02.6]} 56... Rcf4 {[%clk
0:00:15]} 57. h5 {[%clk 0:00:02.8]} 57... R6f5+ {[%clk 0:00:14.2]} 58. Kg6
{[%clk 0:00:03.1]} 58... Kd5 {[%clk 0:00:14.4]} 59. Ra5+ {[%clk 0:00:02.7]}
59... Ke4 {[%clk 0:00:13.6]} 60. h6 {[%clk 0:00:03.2]} 60... Rg4+ {[%clk
0:00:13.3]} 61. Kh7 {[%clk 0:00:01.7]} 61... Kd3 {[%clk 0:00:10]} 62. Ra3+
{[%clk 0:00:01.6]} 62... Ke2 {[%clk 0:00:10.4]} 63. Ra4 {[%clk 0:00:01.1]} 63...
Kxf2 {[%clk 0:00:10.4]} 64. Rxg4 {[%clk 0:00:02]} 64... Ke3 {[%clk 0:00:10.8]}
65. Rg6 {[%clk 0:00:02]} 65... f2 {[%clk 0:00:11.2]} 66. Kg7 {[%clk 0:00:01.8]}
66... f1=Q {[%clk 0:00:12]} 67. h7 {[%clk 0:00:02.7]} 67... Rh5 {[%clk
0:00:12.3]} 68. h8=Q {[%clk 0:00:01.2]} 68... Rxh8 {[%clk 0:00:12.9]} 69. Kxh8
{[%clk 0:00:02.1]} 69... Qf5 {[%clk 0:00:13.5]} 70. Kg7 {[%clk 0:00:01.2]} 70...
Kd4 {[%clk 0:00:13.4]} 71. Rf6 {[%clk 0:00:01.5]} 71... Qg5+ {[%clk 0:00:13.3]}
72. Kf7 {[%clk 0:00:01.3]} 72... e4 {[%clk 0:00:14.1]} 73. Re6 {[%clk
0:00:02.2]} 73... e3 {[%clk 0:00:14.5]} 74. a3 {[%clk 0:00:02.7]} 74... Qf5+
{[%clk 0:00:14.7]} 75. Ke7 {[%clk 0:00:02.6]} 75... Qxe6+ {[%clk 0:00:14.7]} 76.
Kxe6 {[%clk 0:00:03.5]} 76... e2 {[%clk 0:00:15.6]} 0-1

[Event "Late-Titled-Tuesday-Blitz-October-17-2023"]
[Site "Chess.com"]
[Date "2023.10.17"]
[Round "2"]
[White "Mikasinski"]
[Black "PushingpawnsNYC"]
[Result "1-0"]
[WhiteElo "2684"]
[BlackElo "2327"]
[TimeControl "180+1"]
[EndTime "14:19:41 PDT"]
[Termination "Mikasinski won on time"]

1. e4 {[%clk 0:03:00.9]} 1... c5 {[%clk 0:02:59.6]} 2. Nf3 {[%clk 0:03:00.8]}
2... e6 {[%clk 0:02:59.7]} 3. d4 {[%clk 0:03:00.9]} 3... cxd4 {[%clk 0:03:00.2]}
4. Nxd4 {[%clk 0:03:01.4]} 4... a6 {[%clk 0:03:00.8]} 5. Be2 {[%clk 0:03:01.3]}
5... Qc7 {[%clk 0:02:53.8]} 6. O-O {[%clk 0:03:00.7]} 6... Nf6 {[%clk
0:02:53.9]} 7. Nc3 {[%clk 0:03:00.1]} 7... Bb4 {[%clk 0:02:52.8]} 8. Bg5 {[%clk
0:02:59]} 8... Nc6 {[%clk 0:02:52.3]} 9. Nxc6 {[%clk 0:02:46.7]} 9... bxc6
{[%clk 0:02:44.5]} 10. Qd4 {[%clk 0:02:45.3]} 10... Bd6 {[%clk 0:02:31.9]} 11.
g3 {[%clk 0:02:34.4]} 11... c5 {[%clk 0:02:22.5]} 12. Qd3 {[%clk 0:02:27.9]}
12... h6 {[%clk 0:02:08.3]} 13. Be3 {[%clk 0:02:22.6]} 13... Bb7 {[%clk
0:02:03.2]} 14. Rad1 {[%clk 0:02:14.8]} 14... Be5 {[%clk 0:01:59.8]} 15. f3
{[%clk 0:02:09.4]} 15... Bxg3 {[%clk 0:01:53.7]} 16. f4 {[%clk 0:02:05.6]} 16...
Bh4 {[%clk 0:01:42.7]} 17. Qc4 {[%clk 0:02:01.5]} 17... d5 {[%clk 0:01:30.6]}
18. exd5 {[%clk 0:01:51]} 18... Nxd5 {[%clk 0:01:27.3]} 19. Nxd5 {[%clk
0:01:47.3]} 19... Bxd5 {[%clk 0:01:24.4]} 20. Qxc5 {[%clk 0:01:41.9]} 20... Qb7
{[%clk 0:01:15.3]} 21. Qb6 {[%clk 0:01:02.6]} 21... Qxb6 {[%clk 0:01:02.9]} 22.
Bxb6 {[%clk 0:01:01.7]} 22... Rb8 {[%clk 0:01:03.6]} 23. Bd4 {[%clk 0:01:01.3]}
23... Bf6 {[%clk 0:00:59]} 24. b3 {[%clk 0:00:52.2]} 24... Rb4 {[%clk
0:00:45.9]} 25. c3 {[%clk 0:00:51.1]} 25... Bxd4+ {[%clk 0:00:45.8]} 26. Rxd4
{[%clk 0:00:49.2]} 26... Rxd4 {[%clk 0:00:45.5]} 27. cxd4 {[%clk 0:00:49.8]}
27... a5 {[%clk 0:00:43.4]} 28. Rc1 {[%clk 0:00:48.5]} 28... Kd7 {[%clk
0:00:40.7]} 29. Rc5 {[%clk 0:00:47.7]} 29... Rc8 {[%clk 0:00:29]} 30. Rxa5
{[%clk 0:00:40.3]} 30... Rc2 {[%clk 0:00:26.7]} 31. Kf2 {[%clk 0:00:39.7]} 31...
g5 {[%clk 0:00:22.1]} 32. fxg5 {[%clk 0:00:38.5]} 32... hxg5 {[%clk 0:00:23]}
33. Ke3 {[%clk 0:00:38.9]} 33... f5 {[%clk 0:00:21.7]} 34. Kd3 {[%clk
0:00:38.2]} 34... Be4+ {[%clk 0:00:21.5]} 35. Ke3 {[%clk 0:00:36.9]} 35... Bd5
{[%clk 0:00:20.9]} 36. Ra7+ {[%clk 0:00:25.3]} 36... Kd6 {[%clk 0:00:19.5]} 37.
h3 {[%clk 0:00:16.7]} 37... Bg2 {[%clk 0:00:17.5]} 38. Ra6+ {[%clk 0:00:15.2]}
38... Ke7 {[%clk 0:00:17.2]} 39. Bc4 {[%clk 0:00:15.1]} 39... Bd5 {[%clk
0:00:12.1]} 40. Bxd5 {[%clk 0:00:15]} 40... exd5 {[%clk 0:00:13]} 41. Kd3 {[%clk
0:00:13.5]} 41... Rh2 {[%clk 0:00:13]} 42. Kc3 {[%clk 0:00:09.9]} 42... Rxh3+
{[%clk 0:00:12.8]} 43. Kb4 {[%clk 0:00:10.5]} 43... f4 {[%clk 0:00:11.4]} 44.
Rg6 {[%clk 0:00:06.3]} 44... Rg3 {[%clk 0:00:10.9]} 45. Rg7+ {[%clk 0:00:02.6]}
45... Kf6 {[%clk 0:00:10.3]} 46. Rg8 {[%clk 0:00:03.1]} 46... Rd3 {[%clk
0:00:08.4]} 47. Kc5 {[%clk 0:00:02.3]} 47... Rd2 {[%clk 0:00:07.9]} 48. Kxd5
{[%clk 0:00:01.8]} 48... Kf7 {[%clk 0:00:08.4]} 49. Rxg5 {[%clk 0:00:01.7]}
49... Rxa2 {[%clk 0:00:06.8]} 50. Rf5+ {[%clk 0:00:02.1]} 50... Ke7 {[%clk
0:00:06.7]} 51. Rxf4 {[%clk 0:00:03]} 51... Rb2 {[%clk 0:00:07]} 52. Kc4 {[%clk
0:00:03.2]} 52... Re2 {[%clk 0:00:06.3]} 53. Rf5 {[%clk 0:00:02.8]} 53... Kd6
{[%clk 0:00:06.6]} 54. Rf6+ {[%clk 0:00:03]} 54... Kc7 {[%clk 0:00:06.2]} 55.
Rh6 {[%clk 0:00:03.7]} 55... Rc2+ {[%clk 0:00:06.5]} 56. Kb4 {[%clk 0:00:04.1]}
56... Rg2 {[%clk 0:00:07.4]} 57. d5 {[%clk 0:00:04]} 57... Rg5 {[%clk
0:00:07.5]} 58. Kc5 {[%clk 0:00:04.1]} 58... Rg3 {[%clk 0:00:08]} 59. Rh7+
{[%clk 0:00:04.4]} 59... Kd8 {[%clk 0:00:08.5]} 60. Kd6 {[%clk 0:00:04.8]} 60...
Rg6+ {[%clk 0:00:08.8]} 61. Kc5 {[%clk 0:00:05.4]} 61... Rg3 {[%clk 0:00:09.6]}
62. Kc6 {[%clk 0:00:05.9]} 62... Rc3+ {[%clk 0:00:09.1]} 63. Kd6 {[%clk
0:00:06.5]} 63... Kc8 {[%clk 0:00:08.1]} 64. b4 {[%clk 0:00:05.7]} 64... Rb3
{[%clk 0:00:07.1]} 65. Rh4 {[%clk 0:00:05]} 65... Kb7 {[%clk 0:00:06.8]} 66. Rc4
{[%clk 0:00:05.3]} 66... Rh3 {[%clk 0:00:06]} 67. b5 {[%clk 0:00:04.6]} 67...
Kb6 {[%clk 0:00:04.6]} 68. Rc8 {[%clk 0:00:04]} 68... Rh6+ {[%clk 0:00:03.3]}
69. Ke5 {[%clk 0:00:04.4]} 69... Kxb5 {[%clk 0:00:03.8]} 70. d6 {[%clk
0:00:03.8]} 70... Rh5+ {[%clk 0:00:03.8]} 71. Ke6 {[%clk 0:00:04.4]} 71... Rh6+
{[%clk 0:00:04.4]} 72. Kd7 {[%clk 0:00:05]} 72... Rh7+ {[%clk 0:00:04.6]} 73.
Kd8 {[%clk 0:00:05.3]} 73... Kb6 {[%clk 0:00:04.5]} 74. Rc1 {[%clk 0:00:03.8]}
74... Rh8+ {[%clk 0:00:03.4]} 75. Ke7 {[%clk 0:00:04.3]} 75... Rh7+ {[%clk
0:00:04]} 76. Ke6 {[%clk 0:00:04.2]} 76... Rh6+ {[%clk 0:00:04.5]} 77. Ke5
{[%clk 0:00:04.8]} 77... Rh5+ {[%clk 0:00:04.3]} 78. Kf4 {[%clk 0:00:04.7]}
78... Rh4+ {[%clk 0:00:04.3]} 79. Ke3 {[%clk 0:00:04.8]} 79... Rh3+ {[%clk
0:00:03.9]} 80. Kf4 {[%clk 0:00:02.8]} 80... Rh7 {[%clk 0:00:04.4]} 81. Kf5
{[%clk 0:00:02.1]} 81... Rh5+ {[%clk 0:00:03.7]} 82. Kf6 {[%clk 0:00:02.7]}
82... Rd5 {[%clk 0:00:03.7]} 83. Ke6 {[%clk 0:00:02.3]} 83... Rd2 {[%clk
0:00:03.5]} 84. Kd7 {[%clk 0:00:02.1]} 84... Rd3 {[%clk 0:00:03.4]} 85. Rb1+
{[%clk 0:00:02.7]} 85... Kc5 {[%clk 0:00:03.4]} 86. Kc7 {[%clk 0:00:02.6]} 86...
Rd2 {[%clk 0:00:01.8]} 87. d7 {[%clk 0:00:03.1]} 1-0